Cogmind - Beta 14 @@@ ROGUE MODE // 2025.04.28 @ 14:23:11 // Winter2019/RPGLIKE Player: DeepestRoots Result: Destroyed by 1C-UTU with 1C-UTU's Sword "Choppy" Performance ------------- Evolutions (1) 500 Regions Visited (6) 1200 Robots Destroyed (80) 400 Value Destroyed (1725) 1725 Prototype IDs (12) 240 Alien Tech Used (0) 0 Bonus (515) 515 TOTAL SCORE: 4580 Bonus ------- High Alert Combat Kills 217 Follower Combat Kills 298 Cogmind --------- Core Integrity 0/700 Matter 240/300 Energy 310/310 System Corruption 0% Temperature Cool (0) Movement Walking (120) Location -8/Mines Parts ------- > --- POWER (1) -------- Reinforced Fission Core > --- PROPULSION (3) --- Improved Aluminum Leg Advanced Myomer Leg > --- UTILITY (5) ------ Experimental Heat Sink Cooling System Salvage Targeting Computer Experimental Targeting Computer Advanced Weapon Cycler > --- WEAPON (4) ------- Autogun Autogun 8R-AWN's Boregun 8R-AWN's Boregun > --- INVENTORY (4) ---- Large Matter Pod (150) Reflective Plating Autogun Mini Grenade Launcher Peak State ------------ > --- POWER ------------ Reinforced Fission Core > --- PROPULSION ------- Improved Aluminum Leg Advanced Myomer Leg Advanced Myomer Leg > --- UTILITY ---------- Experimental Heat Sink Cooling System Salvage Targeting Computer Experimental Targeting Computer Advanced Weapon Cycler > --- WEAPON ----------- Autogun Autogun 8R-AWN's Boregun 8R-AWN's Boregun > --- INVENTORY -------- Large Matter Pod Autogun Autogun Mini Grenade Launcher [Rating: 73] Favorites ----------- Power Ion Engine Engine Ion Engine Power Core Reinforced Fission Core Propulsion Improved Aluminum Leg Leg Improved Aluminum Leg Utility Medium Armor Plating Device Improved Heat Sink Processor Improved Targeting Computer Protection Medium Armor Plating Weapon Autogun Energy Gun Medium Laser Ballistic Gun Autogun Launcher Grenade Launcher Build | -11 -10 -10 -9 -9 -9 -8 ------- Run | Yrd Mat Min Mat Min Exi Min Slots Evolved 9 | 4 2 . 1 1 1 . Power . | . . . . . . . Propulsion 2 | 1 1 . . . . . Utility 4 | 1 1 . . 1 1 . Weapon 3 | 2 . . 1 . . . Parts Attached 55 | 8 8 2 18 2 16 1 Power 4 | 1 1 . 1 . 1 . Engine 3 | 1 1 . 1 . . . Core 1 | . . . . . 1 . Reactor . | . . . . . . . Propulsion 10 | 2 1 . 4 . 3 . Treads . | . . . . . . . Leg 10 | 2 1 . 4 . 3 . Wheel . | . . . . . . . Hover . | . . . . . . . Flight . | . . . . . . . Utility 20 | 2 5 . 2 2 9 . Device 11 | 2 . . 1 1 7 . Storage . | . . . . . . . Processor 4 | . 1 . 1 1 1 . Hackware . | . . . . . . . Protection 5 | . 4 . . . 1 . Artifact . | . . . . . . . Weapon 21 | 3 1 2 11 . 3 1 Energy Gun 6 | 2 . 1 3 . . . Energy Cannon . | . . . . . . . Ballistic Gun 12 | 1 1 . 7 . 2 1 Ballistic Cannon . | . . . . . . . Launcher 3 | . . 1 1 . 1 . Special Weapon . | . . . . . . . Impact Weapon . | . . . . . . . Slashing Weapon . | . . . . . . . Piercing Weapon . | . . . . . . . Special Melee Weapon . | . . . . . . . Unidentified Prototypes 8 | . . . 1 . 7 . Parts Lost . | . . . . . . . Power . | . . . . . . . Propulsion . | . . . . . . . Utility . | . . . . . . . Weapon . | . . . . . . . Highest Loss Streak . | . . . . . . . To Critical Strikes . | . . . . . . . Average Slot Usage (%) 99 | . 100 100 99 100 99 100 Engine 9 | . 11 10 9 8 7 . Leg 27 | . 24 30 28 26 24 23 Device 7 | . 7 . 9 8 9 23 Processor 10 | . 7 10 9 9 15 15 Protection 11 | . 11 20 10 8 7 . Energy Gun 5 | . 13 4 4 . . . Ballistic Gun 26 | . 21 20 27 35 32 30 Launcher 1 | . . 5 . . . . Peak Build Rating 73 | 10 12 12 24 25 69 73 Average Rating 17 | 7 9 11 19 23 29 72 On Entrance 21 | . 10 12 12 24 25 66 Naked Turns . | . . . . . . . Heaviest Build 42 | 10 23 24 28 29 39 42 Greatest Support 73 | 20 30 30 39 39 73 73 Greatest Overweight (x) 1 | . 1 . . . . . Average Overweight (x) . | . . . . . . . Largest Inventory Capacity 4 | 1 1 1 1 3 4 4 Average Capacity 1 | . 1 1 1 2 3 4 Most Carried 4 | 1 1 1 1 3 4 4 Average Carried 1 | . . . . 2 2 3 Final Capacity 4 | 1 1 1 1 3 4 4 Final Carried 4 | 1 1 1 1 3 4 4 Class Distribution -------------------- 92% | Gunner 7% | Scavenger-Gunner Dominant Class ---------------- Gunner | -10/Materials Gunner | -10/Mines Gunner | -9/Materials Gunner | -9/Mines Gunner | -9/Exiles Scavenger-Gunner | -8/Mines Resources | -11 -10 -10 -9 -9 -9 -8 ----------- Run | Yrd Mat Min Mat Min Exi Min Matter Collected 2049 | 290 172 86 795 148 548 10 Remotely . | . . . . . . . Salvage Created 2400 | 198 566 26 1359 83 168 . Parts 169 | 16 38 6 85 13 11 . Haulers Intercepted 8 | . 2 . 6 . . . Recyclers Shooed 2 | 1 1 . . . . . Parts Field Recycled . | . . . . . . . Retrieved Matter . | . . . . . . . Parts Self-Destructed . | . . . . . . . Prevented . | . . . . . . . Kills | -11 -10 -10 -9 -9 -9 -8 ------- Run | Yrd Mat Min Mat Min Exi Min Combat Hostiles Destroyed 58 | . 15 8 27 6 2 . Guns 52 | . 14 4 27 6 1 . AOE 5 | . . 4 . . 1 . Classes Destroyed 10 | 3 4 1 2 . . . Worker 2 | 1 . . . 1 . . Tunneler 5 | 5 . . . . . . Hauler 8 | . 2 . 6 . . . Recycler 3 | 1 . . 2 . . . Operator 2 | . . . 2 . . . Watcher 6 | . 3 . 3 . . . Swarmer 17 | . 6 3 4 4 . . Grunt 26 | . 9 2 15 . . . Sentry 9 | . . . 8 1 . . Assembled 4 | . . 3 . . 1 . Best Kill Streak 6 | 4 4 3 3 6 1 . Combat Bots Only 6 | . 4 3 3 6 1 . Max Kills in Single Turn 2 | 1 2 2 1 2 1 . Gunslinging 1 | . 1 . . 1 . . Exploded 2 | . . 2 . . 1 . Melee . | . . . . . . . Uniques/NPCs Destroyed 2 | . . . . 1 1 . YI-UF0 (-9/Mines) 8R-AWN (-9/Exiles) Combat | -11 -10 -10 -9 -9 -9 -8 -------- Run | Yrd Mat Min Mat Min Exi Min Hostile Shots Fired 248 | . 36 16 129 13 42 12 Missed 72 | . 16 3 39 3 9 2 Damage Taken 2994 | . 210 168 1257 171 565 623 Core 2186 | . 163 95 877 133 408 510 Absorbed by Shields . | . . . . . . . Redirected to Core 1845 | . 130 82 693 124 386 430 Core Remaining (%) 100 | 100 . 100 . . . . Volleys Fired 225 | 12 49 16 112 8 25 3 Largest 4 | 3 3 3 4 4 4 4 Hottest 120 | 120 120 90 105 92 92 106 Shots Fired 692 | 36 146 38 334 32 94 12 Gun 684 | 36 146 33 333 32 92 12 Cannon . | . . . . . . . Launcher 8 | . . 5 1 . 2 . Special . | . . . . . . . Kinetic 537 | 12 92 22 275 32 92 12 Thermal 147 | 24 54 11 58 . . . Explosive 8 | . . 5 1 . 2 . Electromagnetic . | . . . . . . . Robot Hit Streak 23 | 8 16 9 15 11 23 6 Robot Miss Streak 7 | 4 5 4 6 2 7 2 Penetration Max . | . . . . . . . Secondary Targets 12 | . 4 . 6 2 . . Max Gunslinging Chain 1 | . 1 . 1 1 . . Shots Hit Robots 409 | 18 84 15 200 16 67 9 Core Hits 169 | 10 37 14 79 9 16 4 Critical Kills 1 | . . . 1 . . . Critical Parts Destroyed 2 | . . . 1 1 . . Critical Strikes 16 | 2 6 1 6 1 . . Burn 13 | 2 6 1 4 . . . Destroy 3 | . . . 2 1 . . Melee Attacks . | . . . . . . . Impact . | . . . . . . . Slashing . | . . . . . . . Piercing . | . . . . . . . Sneak Attacks . | . . . . . . . Combat Hostiles . | . . . . . . . Follow-up Attacks . | . . . . . . . Damage Inflicted 5410 | 221 851 348 2441 290 1125 134 Guns 5016 | 217 851 139 2410 252 1013 134 Cannons . | . . . . . . . Explosions 289 | . . 177 . . 112 . Melee . | . . . . . . . Ramming 105 | 4 . 32 31 38 . . Kinetic 3768 | 29 450 87 1803 252 1013 134 Thermal 1248 | 188 401 52 607 . . . Explosive 289 | . . 177 . . 112 . Electromagnetic . | . . . . . . . Impact . | . . . . . . . Slashing . | . . . . . . . Piercing . | . . . . . . . Highest Corruption . | . . . . . . . Average Corruption . | . . . . . . . Corruption Purged . | . . . . . . . Corruption Blocked . | . . . . . . . Overload Shots . | . . . . . . . Overflow Damage 6 | . . . 6 . . . Projectiles . | . . . . . . . Explosions . | . . . . . . . Melee 6 | . . . 6 . . . Knockbacks . | . . . . . . . Impact . | . . . . . . . Kinetic . | . . . . . . . Secondary . | . . . . . . . Self-Inflicted Damage . | . . . . . . . Shots . | . . . . . . . Rammed . | . . . . . . . Targets Rammed 17 | 1 . 7 3 6 . . Kicked 17 | 1 . 7 3 6 . . Crushed . | . . . . . . . Highest Temperature 372 | 286 372 312 369 38 32 . Average Temperature 78 | 104 92 103 64 16 15 . Received Heat Transfer 685 | . 78 124 483 . . . Effects 1 | . . 1 . . . . Energy Bleed 1 | . . 1 . . . . Siege Activations . | . . . . . . . Robots Corrupted 1 | . . . 1 . . . Combat Hostiles . | . . . . . . . Parts Fried . | . . . . . . . Impact Corruptions 1 | . . . 1 . . . Robots Melted 1 | . 1 . . . . . Combat Hostiles 1 | . 1 . . . . . Parts Melted 13 | 2 6 . 5 . . . Heat Transferred 4255 | 703 1591 222 1739 . . . Parts Sabotaged . | . . . . . . . Parts Stolen . | . . . . . . . Parts Stripped . | . . . . . . . Power Chain Reactions . | . . . . . . . Alert | -11 -10 -10 -9 -9 -9 -8 ------- Run | Yrd Mat Min Mat Min Exi Min Peak Influence 751 | 35 192 110 751 292 . 1 Initial 176 | . 22 39 . 176 . . Average 216 | 12 79 29 515 129 . . Maximum Alert Level 3 | . . . 3 1 . . Low Security (%) 64 | 100 100 100 10 65 . 100 Level 1 10 | . . . 15 34 . . Level 2 17 | . . . 52 . . . Level 3 7 | . . . 22 . . . Level 4 . | . . . . . . . Level 5 . | . . . . . . . High Security . | . . . . . . . Max Security . | . . . . . . . Squads Dispatched 8 | . 3 . 5 . . . Investigation 5 | . 2 . 3 . . . Extermination . | . . . . . . . Reinforcement 2 | . 1 . 1 . . . Assault 1 | . . . 1 . . . Garrison . | . . . . . . . Intercept . | . . . . . . . Searches Triggered . | . . . . . . . Construction Impeded . | . . . . . . . Haulers Reinforced . | . . . . . . . Active Scanning Responses . | . . . . . . . Cargo Convoy Interrupts . | . . . . . . . Stealth | -11 -10 -10 -9 -9 -9 -8 --------- Run | Yrd Mat Min Mat Min Exi Min Distress Signals 7 | . 2 1 4 . . . Communications Jammed . | . . . . . . . Distress Signals . | . . . . . . . Times Spotted 92 | . 23 6 49 4 9 1 Peak Tracking Total 10 | . 5 2 4 3 10 1 Tactical Retreats 2 | . 1 . . . 1 . Traps | -11 -10 -10 -9 -9 -9 -8 ------- Run | Yrd Mat Min Mat Min Exi Min Traps Triggered 5 | . 2 . 3 . . . Indirectly . | . . . . . . . Trap Hack Attempts . | . . . . . . . Triggered . | . . . . . . . Disarmed . | . . . . . . . Reprogrammed . | . . . . . . . Reused 1 | . . . . . 1 . Traps Extracted . | . . . . . . . Installed 3 | . . . . 2 1 . Triggered . | . . . . . . . Most Traps Carried 1 | . . . . 1 1 . Machines | -11 -10 -10 -9 -9 -9 -8 ---------- Run | Yrd Mat Min Mat Min Exi Min Machines Disabled 4 | . . . . . 4 . Max in Single Turn 1 | . . . . . 1 . Machines Repaired . | . . . . . . . Machines Dismantled . | . . . . . . . Machines Sabotaged . | . . . . . . . Overloaded Fab Kills . | . . . . . . . Hacking | -11 -10 -10 -9 -9 -9 -8 --------- Run | Yrd Mat Min Mat Min Exi Min Machines Accessed 17 | . 5 . 10 1 1 . Terminals 16 | . 5 . 10 1 . . Fabricators . | . . . . . . . Repair Stations . | . . . . . . . Recycling Units . | . . . . . . . Scanalyzers . | . . . . . . . Garrison Access . | . . . . . . . Total Hacks 49 | . 13 . 34 1 1 . Successful 24 | . 7 . 15 1 1 . Failed 25 | . 6 . 19 . . . Catastrophic 4 | . 1 . 3 . . . Database Lockouts . | . . . . . . . Manual 22 | . 4 . 16 2 . . Terminals 48 | . 13 . 34 1 . . Fabricators . | . . . . . . . Repair Stations . | . . . . . . . Recycling Units . | . . . . . . . Scanalyzers . | . . . . . . . Garrison Access . | . . . . . . . Terminal Hacks 21 | . 6 . 13 1 1 . Record 1 | . . . . . 1 . Robot Analysis 5 | . 2 . 2 1 . . Prototype ID Bank 2 | . 1 . 1 . . . Branch Access Points 2 | . 1 . 1 . . . Emergency Access Points 1 | . . . 1 . . . Alert Level 2 | . . . 2 . . . Unreport Threat 3 | . 1 . 2 . . . Locate Traps 1 | . . . 1 . . . Transport Status 1 | . . . 1 . . . Hauler Manifests 2 | . 1 . 1 . . . Zone Layout 1 | . . . 1 . . . Fabricator Hacks . | . . . . . . . Repair Station Hacks . | . . . . . . . Recycling Unit Hacks . | . . . . . . . Scanalyzer . | . . . . . . . Garrison Access Hacks . | . . . . . . . Unauthorized Hacks 3 | . 1 . 2 . . . Terminals 3 | . 1 . 2 . . . Botnet 3 | . 1 . 2 . . . Fabricators . | . . . . . . . Repair Stations . | . . . . . . . Recycling Units . | . . . . . . . Scanalyzers . | . . . . . . . Garrison Access . | . . . . . . . Data Cores Recovered 1 | . . . 1 . . . Used . | . . . . . . . Hacking Detections 16 | . 5 . 10 1 . . Full Trace Events 2 | . . . 2 . . . Feedback Events . | . . . . . . . Feedback Blocked . | . . . . . . . Robot Schematics Acquired . | . . . . . . . Robots Built . | . . . . . . . Authchips . | . . . . . . . Time . | . . . . . . . Total Robot Build Rating . | . . . . . . . Part Schematics Acquired . | . . . . . . . Parts Built . | . . . . . . . Authchips . | . . . . . . . Time . | . . . . . . . Total Part Build Rating . | . . . . . . . Parts Repaired . | . . . . . . . Time . | . . . . . . . Parts Recycled . | . . . . . . . Recycled Matter . | . . . . . . . Retrieved Matter . | . . . . . . . Retrieved Components . | . . . . . . . Parts Scanalyzed . | . . . . . . . Part Schematics Acquired . | . . . . . . . Parts Damaged . | . . . . . . . Bothacking | -11 -10 -10 -9 -9 -9 -8 ------------ Run | Yrd Mat Min Mat Min Exi Min Used RIF Installer . | . . . . . . . Robots Hacked . | . . . . . . . Non-combat . | . . . . . . . Combat . | . . . . . . . Robot Hacks Applied . | . . . . . . . Relay Couplers Released . | . . . . . . . Fabnet Peak Effective % . | . . . . . . . Robots Rewired . | . . . . . . . Allies Hacked . | . . . . . . . Hacks Repelled . | . . . . . . . Allies | -11 -10 -10 -9 -9 -9 -8 -------- Run | Yrd Mat Min Mat Min Exi Min Total Allies 5 | . . 2 . 3 . . Largest Group 3 | . . 2 2 3 3 . Highest-Rated Group 51 | . . 51 51 40 40 . Highest-Rated Ally 31 | . . 31 31 16 16 . Total Orders 16 | . . . . . 16 . STAY 14 | . . . . . 14 . ROAM 1 | . . . . . 1 . FOLLOW 1 | . . . . . 1 . Ally Attacks 85 | . . 3 61 1 20 . Total Damage 989 | . . 63 875 11 40 . Kills 19 | . . 1 16 . 2 . Allies Corrupted . | . . . . . . . Allies Melted . | . . . . . . . Intel | -11 -10 -10 -9 -9 -9 -8 ------- Run | Yrd Mat Min Mat Min Exi Min Robot Analysis Total 5 | . 2 . 2 1 . . Derelict Logs Recovered 4 | . . 2 . 2 . . Drone Launches . | . . . . . . . Drone Recoveries . | . . . . . . . Exploration | -11 -10 -10 -9 -9 -9 -8 ------------- Run | Yrd Mat Min Mat Min Exi Min Turns Passed 7832 | 252 1586 1515 2222 1140 1044 73 Spaces Moved 4998 | 172 996 793 1364 877 745 51 Core 6 | 6 . . . . . . Treads . | . . . . . . . Legs 4992 | 166 996 793 1364 877 745 51 Wheels . | . . . . . . . Hover . | . . . . . . . Flight . | . . . . . . . Fastest Speed 50 | 50 120 120 120 120 120 120 Average Speed 122 | 117 130 120 120 120 120 120 Slowest Speed 190 | 120 190 120 120 120 120 120 Overloaded Moves . | . . . . . . . Propulsion Burnouts . | . . . . . . . Robots Hopped . | . . . . . . . Cave-ins Triggered . | . . . . . . . Exploration Rate (%) 64 | 11 95 88 98 95 50 17 Regions Visited 6 Branch Regions 4 Pre-discovered Areas 2 | . . 1 . . 1 . Known Exits Taken 3 | . 1 1 1 . . . Unknown Exits Taken 3 | 1 . . . 1 1 . Scrap Searched 3 | . . 1 . 1 . 1 Spaces Dug 7 | . . 7 . . . . Terrain Destroyed 57 | . . 29 9 . 15 4 Melee . | . . . . . . . Projectile 3 | . . . . . . 3 AOE 53 | . . 29 9 . 15 . Terrain Rammed . | . . . . . . . Walls Destroyed . | . . . . . . . Machines Disabled . | . . . . . . . Actions | -11 -10 -10 -9 -9 -9 -8 --------- Run | Yrd Mat Min Mat Min Exi Min Total 6335 | 193 1188 1331 1754 950 861 58 Wait 852 | . 112 503 178 45 13 1 Move 4992 | 171 995 792 1363 876 744 51 Hop . | . . . . . . . Pick Up 30 | 1 2 3 2 3 18 1 Fast Attach 29 | 8 4 . 7 . 10 . Attach 2 | . . 1 . 1 . . Detach . | . . . . . . . Swap 24 | . 4 1 11 1 6 1 Drop 54 | . 7 3 14 1 28 1 Fire 225 | 12 49 16 112 8 25 3 Melee . | . . . . . . . Ram . | . . . . . . . Kick 17 | 1 . 7 3 6 . . Crush . | . . . . . . . Escape Stasis . | . . . . . . . Rewire . | . . . . . . . Trap 3 | . . . . 2 1 . Miscellaneous 107 | . 15 5 64 7 16 . Route ------- -11/Scrapyard -10/Materials (discovered 5 exits: *Mat x3 / *Min x2) -10/Mines (discovered 2 exits: *Mat x2) -9/Materials (discovered 4 exits: *Mat x3 / *Min) -9/Mines (discovered 3 exits: *Mat x2 / *Exi) -9/Exiles (discovered 2 exits: [*Min x2]) -8/Mines History --------- Turn | Location | Event 3 | -11/Scrapyard | Discovered new exit (range 14) 10 | -11/Scrapyard | Upgraded with Propulsion slot (x1) 10 | -11/Scrapyard | Upgraded with Utility slot (x1) 10 | -11/Scrapyard | Upgraded with Weapon slot (x2) 253 | -11/Scrapyard | Entered Materials 315 | -10/Materials | Build established: Gunner 650 | -10/Materials | Discovered new exit (range 4) 780 | -10/Materials | Discovered new exit (range 7) 1006 | -10/Materials | Discovered new exit (range 14) 1078 | -10/Materials | Reached level 2 1148 | -10/Materials | Identified exit to Mines 1177 | -10/Materials | Discovered new exit (range 13) 1402 | -10/Materials | Upgraded with Utility slot (x1) 1736 | -10/Materials | Upgraded with Propulsion slot (x1) 1839 | -10/Materials | Entered Mines 1876 | -10/Mines | Assembled infested the area 2555 | -10/Mines | Discovered new exit (range 6) 2566 | -10/Mines | Identified exit to Materials 2750 | -10/Mines | Reached level 3 3354 | -10/Mines | Entered Materials 3354 | -9/Materials | Accompanied by 2 allies 3356 | -9/Materials | Reached level 4 3359 | -9/Materials | Led the pair of lost Derelicts to an unsafe place 3497 | -9/Materials | Discovered new exit (range 7) 3640 | -9/Materials | Reached level 5 3757 | -9/Materials | Discovered new exit (range 7) 3851 | -9/Materials | Reached level 6 4118 | -9/Materials | Discovered new exit (range 14) 4154 | -9/Materials | First assault squad dispatched 4291 | -9/Materials | Reached level 7 4316 | -9/Materials | Build established: Scavenger-Gunner 4619 | -9/Materials | Discovered new exit (range 16) 4668 | -9/Materials | Upgraded with Weapon slot (x1) 4712 | -9/Materials | Build established: Gunner 5072 | -9/Materials | Identified exit to Mines 5181 | -9/Materials | Reached level 8 5576 | -9/Materials | Entered Mines 5718 | -9/Mines | Identified exit to Materials 5838 | -9/Mines | Joined a pair of Derelicts in attacking an 0b10 outpost 5941 | -9/Mines | Assisted by bots powering up and referring to "LRC-V3" 5962 | -9/Mines | Destroyed YI-UF0 5990 | -9/Mines | Found a damaged Exp. Sensor Array with a note attached 6008 | -9/Mines | Learned location of 1 exit from Materials 6013 | -9/Mines | Discovered exit to Materials (range 7) 6097 | -9/Mines | Deemed a non-threat by the Exiles lab entrance 6098 | -9/Mines | Discovered new exit (range 5) 6203 | -9/Mines | Found a hidden stash of uninstalled traps 6633 | -9/Mines | Upgraded with Utility slot (x1) 6716 | -9/Mines | Entered Exiles 6716 | -9/Exiles | Accompanied by 3 allies 6734 | -9/Exiles | Discovered new exit (range 15) 6749 | -9/Exiles | Met 8R-AWN 6767 | -9/Exiles | Met EX-HEX 6812 | -9/Exiles | Met EX-DEC 6820 | -9/Exiles | Learned location of Zion (-6) 7464 | -9/Exiles | Warned about trapping Exiles lab 7465 | -9/Exiles | Attacked by the Exiles 7594 | -9/Exiles | Lost 3 allies 7610 | -9/Exiles | Core integrity fell below 50% 7620 | -9/Exiles | Destroyed 8R-AWN 7626 | -9/Exiles | Found Prototype Ballistic Gun 7628 | -9/Exiles | Found Prototype Ballistic Gun 7644 | -9/Exiles | Found Prototype Device 7644 | -9/Exiles | Identified AS-neutralizer No. 17b 7652 | -9/Exiles | Found Prototype Processor 7652 | -9/Exiles | Identified Exp. Targeting Computer 7661 | -9/Exiles | Upgraded with Utility slot (x1) 7661 | -9/Exiles | Found Prototype Protection 7661 | -9/Exiles | Identified 8R-AWN's Armor/EX 7676 | -9/Exiles | Identified 8R-AWN's Boregun (x2) 7746 | -9/Exiles | Discovered new exit (range 14) 7760 | -9/Exiles | Entered Mines 7762 | -8/Mines | Reached level 9 7824 | -8/Mines | 1C-UTU came to Exiles' defense 7833 | -8/Mines | Core integrity fell below 20% 7833 | -8/Mines | Destroyed by 1C-UTU with 1C-UTU's Sword "Choppy" Last Messages --------------- 07771_ Acquired Reflective Plating. 07824_ 1C-UTU: "I came as fast as I could... Wait, it was you!" 07826_ HV Slug penetrates 1C-UTU. 07826_ HV Slug penetrates Wall. 07826_ HV Slug penetrates 1C-UTU. 07826_ HV Slug penetrates Wall. 07827_ 1C-UTU follow-up attacks with Prototype Slashing Weapon. 07828_ HV Slug penetrates 1C-UTU. 07828_ HV Slug penetrates Wall. 07828_ HV Slug penetrates 1C-UTU. 07828_ HV Slug penetrates Wall. 07829_ 1C-UTU follow-up attacks with Prototype Slashing Weapon. 07830_ Upgraded: Core Integrity (+100) 07830_ HV Slug penetrates 1C-UTU. 07830_ HV Slug penetrates Wall. 07830_ HV Slug penetrates 1C-UTU. 07830_ HV Slug penetrates Wall. 07832_ 1C-UTU follow-up attacks with Prototype Slashing Weapon. 07832_ Adv. Myomer Leg severed. 07833_ Wall collapses. Map ----- +----------------------------------------------------+ | | | | | | | | | | | ?????????????????????????????????????????????????? | | ?????????##?????????????????####?????????????????? | | ????????## ######?????????## ##????????????????? | | ????????# ##????????# #????????????????? | | ????????# ########## ##??????###??????? | | ????????# ##???## #####??? | | ????????## #??## ???? | | ?????????###### ########### #?## #?????? | | ??????????????## #??????## ### ##????? | | ???????????????## ##?????# [ ####?? | | ????????????????# ##????# *% [ #?? | | ????????????????# ##???# #### # #? | | ????????????????# ##### ##??# ## | | ????????????????# ## #???# ### | | ????????????????## ### ### ???# #??# | | ?????????????????## ##?# #?# ???# #??? | | ??????????????????####??# #?# ?? #???# ## | | ????????????????????????# #?# ??###???? #?? | | ????????????????????????# #?# #???????? #???# | | ????????????????????????# #?## #????????? #???? | | ????????????????????????#@#??# ##????????? #???? | | ????????????????????????#l#??# ##???????????#???? | | ????????????????????????# #??# #????????????????? | | ????????????????????????# ?? ?????????????????? | | ????????????????????????#;###? ?????????????????? | | ????????????????????????# #???##?????????????????? | | ????????????????????????# #??????????????????????? | | ????????????????????????# #??????????????????????? | | ????????????????????????###??????????????????????? | | ?????????????????????????????????????????????????? | | ?????????????????????????????????????????????????? | | ?????????????????????????????????????????????????? | | ?????????????????????????????????????????????????? | | ?????????????????????????????????????????????????? | | ?????????????????????????????????????????????????? | | ?????????????????????????????????????????????????? | | ?????????????????????????????????????????????????? | | ?????????????????????????????????????????????????? | | ?????????????????????????????????????????????????? | | ?????????????????????????????????????????????????? | | ?????????????????????????????????????????????????? | | ?????????????????????????????????????????????????? | | ?????????????????????????????????????????????????? | | ?????????????????????????????????????????????????? | | ?????????????????????????????????????????????????? | +----------------------------------------------------+ Best States ------------- Heat Dissipation 73 Energy Generation 19 Energy Capacity 310 Matter Stores 300 Matter Capacity 300 Sight Range 16 Terrain Scan Range 16 Terrain Scan Density 10 Armor Coverage 450 Weapon Cycling 25 Evasion (%) 55 Targeting Accuracy 12 Salvage Targeting 1 Item Schematics ----------------- None Robot Schematics ------------------ None Fabricated ------------ Nothing Alien Tech Used ----------------- None Achievements -------------- None Challenges ------------ None RPGLIKE | -11 -10 -10 -9 -9 -9 -8 --------- Run | Yrd Mat Min Mat Min Exi Min Levels Raised 8 | . 1 1 5 . . 1 XP Earned 15137 | 3000 2045 1100 7604 749 139 500 XP Spent 10060 | 2550 1600 . 1100 2350 2400 60 Upgrades 15 | 5 2 . 1 3 2 2 Propulsion Slot 2 | 1 1 . . . . . Utility Slot 4 | 1 1 . . 1 1 . Weapon Slot 3 | 2 . . 1 . . . Core Integrity 2 | . . . . . . 2 Inventory Capacity 4 | 1 . . . 2 1 . Protomatter Created 689 | . 109 74 398 101 7 . Integrity Restored 1973 | . 238 101 1207 139 288 . Core 1481 | . 163 95 877 133 213 . Parts 492 | . 75 6 330 6 75 . Protomatter Decayed 230 | . . 82 72 35 41 . Game ------ Seed TitaniumWeaponsPropulsion Manual? 0 Play Time 01:10:03 Cumulative 965.0 hours Start 2025.04.28 @ 13:13:20 End 2025.04.28 @ 14:23:11 Sessions 3 Manual Loads 0 Difficulty Rogue Special Mode Winter2019/RPGLIKE Game No. 74 Rogue 14 Adventurer 46 Explorer 14 Win Type - Total 49 Types 26/4/10/1/1/2/0/3/2 Lore% 85 Gallery% 94 Achievement% 80 Wizard Run 0 Options --------- Layout 0 ASCII 0 Keyboard 0 Movement Arrows Keybinds 0 Fullscreen 2 Font 36/Terminus++ Map View 76x50 Zoom Use 0% Tactical HUD 1 Map Filters NONE Filters NONE Steam 0 RUN: b2227b65-83db-424a-85c5-c14b2cd5a6c4